fUSD/lending_fUSD_20240517
["ID","MTS","AMOUNT","RATE_DAILY","PERIOD"]
[327297303,1715971838992,-500.0,0.00012328,2]
[327297305,1715971839001,-500.0,0.00012328,2]
[327297307,1715971839010,-500.0,0.00012328,2]
[327297309,1715971839020,-335.7844628,0.00012348,2]
[327297311,1715971839029,-200.0,0.000124,4]
[327297313,1715971839039,-200.0,0.000125,4]
[327297315,1715971839050,-200.0,0.000126,4]
[327297317,1715971839059,-600.0,0.00012602,2]
[327297319,1715971839068,-500.0,0.00012602,2]
[327297321,1715971839078,-1000.0,0.00012698,2]
[327297323,1715971839088,-200.0,0.000127,4]
[327297325,1715971839097,-1564.36069654,0.00012723,2]
[327297327,1715971839107,-6109.2715,0.00012726,2]
[327297329,1715971839116,-197.5464,0.00012738,2]
[327297331,1715971839126,-818.88979131,0.00012739,2]
[327297333,1715971839135,-4998.07979162,0.0001274,2]
[327297335,1715971839144,-4895.0,0.00012798,2]
[327297337,1715971839154,-759.0,0.000128,4]
[327297339,1715971839164,-422.62961895,0.00012805,2]
[327297341,1715971839173,-166.93090445,0.00012805,2]
[327297343,1715971839183,-422.62961894,0.00012816,2]
[327297345,1715971839192,-166.93090445,0.00012821,2]
[327297347,1715971839202,-422.62961894,0.00012826,2]
[327297349,1715971839211,-200.0,0.0001283,2]
[327297351,1715971839222,-1000.0,0.0001283,2]
[327297353,1715971839234,-500.0,0.0001283,2]
[327297355,1715971839244,-422.62961894,0.00012837,2]
[327297357,1715971839254,-166.93090445,0.00012837,2]
[327297359,1715971839263,-210.0,0.00012845,2]
[327297361,1715971839274,-422.62961894,0.00012847,2]
[327297363,1715971839283,-166.93090445,0.00012853,2]
[327297365,1715971839292,-422.62961894,0.00012858,2]
[327297367,1715971839312,-422.62961894,0.00012868,2]
[327297370,1715971839324,-166.93090445,0.00012868,2]
[327297372,1715971839334,-366.44351753,0.00012869,2]
[327297374,1715971839343,-150.0,0.00012877,2]
[327297376,1715971839353,-422.62961894,0.00012879,2]
[327297378,1715971839362,-166.93090445,0.00012884,2]
[327297380,1715971839372,-1000.0,0.00012887,2]
[327297382,1715971839382,-422.62961894,0.00012889,2]
[327297384,1715971839391,-1000.0,0.00012895,2]
[327297386,1715971839400,-500.0,0.00012895,2]
[327297388,1715971839411,-7500.0,0.00012895,2]
[327297390,1715971839421,-401.6954,0.000129,2]
[327297392,1715971839431,-1118.0039,0.000129,2]
[327297394,1715971839441,-4576.8797,0.000129,2]
[327297396,1715971839450,-180.64916905,0.000129,2]
[327297398,1715971839460,-2227.17996015,0.000129,2]
[327297400,1715971839470,-422.62961894,0.000129,2]
[327297402,1715971839480,-166.93090445,0.000129,2]
[327297404,1715971839489,-179.85424468,0.000129,2]
[327297407,1715971839499,-973.0,0.00012905,2]
[327297409,1715971839509,-1399.0,0.00012905,2]
[327297411,1715971839518,-2159.0,0.00012905,2]
[327297413,1715971839527,-1259.0,0.00012905,2]
[327297415,1715971839537,-544.0,0.00012905,2]
[327297417,1715971839546,-1225.0,0.00012905,2]
[327297419,1715971839557,-439.0,0.00012905,2]
[327297421,1715971839566,-612.0,0.00012905,2]
[327297423,1715971839575,-444.0,0.00012905,2]
[327297425,1715971839584,-809.0,0.00012905,2]
[327297427,1715971839594,-150.0,0.00012905,2]
[327297429,1715971839603,-2393.0,0.00012905,2]
[327297431,1715971839613,-1647.0,0.00012905,2]
[327297433,1715971839622,-1137.0,0.00012905,2]
[327297435,1715971839631,-215.0,0.00012905,2]
[327297437,1715971839640,-3159.0,0.00012905,2]
[327297439,1715971839651,-277.0,0.00012905,2]
[327297440,1715971839660,-151.159,0.00012905,2]
[327297443,1715971839670,-207.297,0.00012905,2]
[327297445,1715971839679,-30616.11942626,0.00012905,2]
[327297504,1715971840230,-286.7885,0.00012905,2]
[327297547,1715971840619,-348.72846072,0.00012905,2]
[327297549,1715971840631,-4407.22050574,0.00012905,2]
[327297577,1715971841018,-2199.14310728,0.00012905,2]
[327297579,1715971841027,-4323.45689272,0.00012905,2]
[327297581,1715971841038,-1037.83739398,0.00012905,2]
[327297583,1715971841051,-391.7057133,0.00012905,2]
[327297585,1715971841061,-155.913,0.00012905,2]
[327297588,1715971841070,-152.59087238,0.00012905,2]
[327297590,1715971841081,-0.97712762,0.00012905,2]
[327297592,1715971841091,-5914.0,0.00012905,2]
[327297594,1715971841100,-1464.0,0.00012905,2]
[327297596,1715971841109,-290.61029948,0.00012905,2]
[327297598,1715971841121,-769.38970052,0.00012905,2]
[327297600,1715971841130,-59.08926608,0.00012905,2]
[327297602,1715971841142,-102.91973392,0.00012905,2]
[327297604,1715971841151,-165.078,0.00012905,2]
[327297606,1715971841160,-68.97576607,0.00012905,2]
[327297703,1715971843419,-84.89523393,0.00012905,2]
[327297704,1715971843428,-219.0,0.00012905,2]
[327297705,1715971843438,-164.138504,0.00012926,2]
[327297706,1715971843448,-457.82626207,0.00012949,2]
[327297707,1715971843461,-16527.09666927,0.00012949,2]
[327297708,1715971843471,-155.6,0.00012985,2]
[327297709,1715971843480,-4589.16668298,0.00012986,2]
[327297710,1715971843491,-5446.85794335,0.00012987,2]
[327297711,1715971843500,-155.6,0.0001299,2]
[327297712,1715971843511,-155.6,0.0001299,2]
[327297713,1715971843520,-155.6,0.0001299,2]
[327297714,1715971843530,-155.6,0.0001299,2]
[327297715,1715971843540,-155.6,0.0001299,2]
[327297716,1715971843550,-151.36,0.0001299,2]
[327297717,1715971843562,-151.36,0.0001299,2]
[327297718,1715971843572,-151.36,0.0001299,2]
[327297719,1715971843582,-151.36,0.0001299,2]
[327297720,1715971843592,-151.36,0.0001299,2]
[327297721,1715971843602,-151.36,0.0001299,2]
[327297722,1715971843612,-151.36,0.0001299,2]
[327297723,1715971843623,-151.36,0.0001299,2]
[327297724,1715971843633,-151.36,0.0001299,2]
[327297725,1715971843643,-151.36,0.0001299,2]
[327297726,1715971843654,-151.36,0.0001299,2]
[327297727,1715971843664,-151.36,0.0001299,2]
[327297728,1715971843674,-151.36,0.0001299,2]
[327297729,1715971843684,-151.36,0.0001299,2]
[327297730,1715971843694,-151.36,0.0001299,2]
[327297731,1715971843704,-151.36,0.0001299,2]
[327297732,1715971843714,-151.36,0.0001299,2]
[327297733,1715971843723,-151.36,0.0001299,2]
[327297734,1715971843733,-151.36,0.0001299,2]
[327297735,1715971843743,-151.36,0.0001299,2]
[327297736,1715971843752,-151.36,0.0001299,2]
[327297737,1715971843762,-151.36,0.0001299,2]
[327297738,1715971843771,-151.36,0.0001299,2]
[327297739,1715971843781,-151.36,0.0001299,2]
[327297740,1715971843790,-151.36,0.0001299,2]
[327297741,1715971843800,-151.36,0.0001299,2]
[327297742,1715971843810,-151.36,0.0001299,2]
[327297743,1715971843820,-151.36,0.0001299,2]
[327297744,1715971843829,-151.36,0.0001299,2]
[327297745,1715971843838,-151.36,0.0001299,2]
[327297746,1715971843848,-151.36,0.0001299,2]
[327297747,1715971843857,-151.36,0.0001299,2]
[327297748,1715971843867,-151.36,0.0001299,2]
[327297749,1715971843877,-151.36,0.0001299,2]
[327297750,1715971843887,-151.36,0.0001299,2]
[327297751,1715971843896,-151.36,0.0001299,2]
[327297752,1715971843906,-151.36,0.0001299,2]
[327297753,1715971843916,-151.36,0.0001299,2]
[327297754,1715971843925,-151.36,0.0001299,2]
[327297755,1715971843934,-151.36,0.0001299,2]
[327297756,1715971843943,-151.36,0.0001299,2]
[327297757,1715971843952,-151.36,0.0001299,2]
[327297758,1715971843962,-151.36,0.0001299,2]
[327297759,1715971843971,-151.36,0.0001299,2]
[327297760,1715971843981,-151.36,0.0001299,2]
[327297761,1715971843990,-151.36,0.0001299,2]
[327297762,1715971844000,-151.36,0.0001299,2]
[327297763,1715971844009,-151.36,0.0001299,2]
[327297764,1715971844018,-151.36,0.0001299,2]
[327297765,1715971844028,-500.0,0.00012993,2]
[327297766,1715971844039,-500.0,0.00012993,2]
[327297767,1715971844048,-507.33431741,0.00012993,2]
[327297768,1715971844059,-500.0,0.00012993,2]
[327297769,1715971844068,-500.0,0.00012993,2]
[327297770,1715971844077,-500.0,0.00012993,2]
[327297771,1715971844087,-569.72053404,0.00012993,2]
[327297772,1715971844096,-500.0,0.00012993,2]
[327297773,1715971844106,-500.0,0.00012993,2]
[327297774,1715971844115,-500.0,0.00012993,2]
[327297775,1715971844125,-500.0,0.00012993,2]
[327297776,1715971844134,-192.14023099,0.00012993,2]
[327297777,1715971844143,-500.0,0.00012993,2]
[327297778,1715971844153,-480.1494943,0.00012993,2]
[327297779,1715971844162,-500.0,0.00012993,2]
[327297780,1715971844171,-500.0,0.00012993,2]
[327297781,1715971844180,-500.0,0.00012993,2]
[327297782,1715971844189,-500.0,0.00012993,2]
[327297783,1715971844199,-500.0,0.00012993,2]
[327297784,1715971844208,-500.0,0.00012993,2]
[327297785,1715971844217,-500.0,0.00012993,2]
[327297786,1715971844227,-170.65,0.00012993,2]
[327297787,1715971844241,-500.0,0.00012993,2]
[327297788,1715971844251,-500.0,0.00012993,2]
[327297789,1715971844262,-500.0,0.00012993,2]
[327297790,1715971844272,-630.9465976,0.00012993,2]
[327297791,1715971844282,-500.0,0.00012993,2]
[327297792,1715971844292,-500.0,0.00012994,2]
[327297793,1715971844301,-500.0,0.00012994,2]
[327297794,1715971844316,-500.0,0.00012994,2]
[327297795,1715971844325,-500.0,0.00012994,2]
[327297796,1715971844334,-500.0,0.00012994,2]
[327297797,1715971844343,-500.0,0.00012994,2]
[327297798,1715971844352,-545.66,0.00012994,2]
[327297799,1715971844362,-500.0,0.00012994,2]
[327297800,1715971844541,-500.0,0.00012994,2]
[327297801,1715971844591,-500.0,0.00012994,2]
[327297802,1715971844601,-500.0,0.00012994,2]
[327297803,1715971844612,-500.0,0.00012994,2]
[327297804,1715971844621,-500.0,0.00012994,2]
[327297805,1715971844631,-500.0,0.00012994,2]
[327297806,1715971844642,-500.0,0.00012994,2]
[327297807,1715971844652,-500.0,0.00012994,2]
[327297808,1715971844662,-500.0,0.00012994,2]
[327297809,1715971844671,-500.0,0.00012994,2]
[327297810,1715971844680,-500.0,0.00012994,2]
[327297811,1715971844689,-500.0,0.00012994,2]
[327297812,1715971844699,-483.06,0.00012994,2]
[327297813,1715971844708,-500.0,0.00012994,2]
[327297814,1715971844717,-110.28382654,0.00012994,2]
[327297815,1715971844731,-389.71617346,0.00012994,2]
[327297816,1715971844740,-500.0,0.00012994,2]
[327297817,1715971844749,-500.0,0.00012994,2]
[327297818,1715971844758,-500.0,0.00012994,2]
[327297819,1715971844767,-500.0,0.00012994,2]
[327297820,1715971844777,-500.0,0.00012994,2]
[327297821,1715971844786,-300.37,0.00012994,2]
[327297822,1715971844796,-153.70474194,0.00012994,2]
[327297823,1715971844806,-500.0,0.00012994,2]
[327297824,1715971844815,-500.0,0.00012994,2]
[327297825,1715971844824,-500.0,0.00012994,2]
[327297826,1715971844834,-1821.11778461,0.00012995,2]
[327297827,1715971846279,-35332.95590821,0.00012995,2]
[327297828,1715971846291,-2530.27112991,0.00012995,2]
[327297829,1715971846303,-22793.98443486,0.00012995,2]
[327297830,1715971846317,-3346.10139197,0.00012996,2]
[327297831,1715971846703,-500.0,0.00012993,2]
[327297832,1715971846715,-824.98,0.00012996,2]
[327297833,1715971846727,-5570.45453968,0.00012996,2]
[327297834,1715971846740,-695.5063196,0.00012996,2]
[327297835,1715971846753,-7700.90349088,0.00012996,2]
[327297969,1715973034638,-281.78392074,8.87e-05,2]
[327297970,1715973034651,-2.32407986,8.87e-05,2]
[327297971,1715973034664,-152.67592014,8.87e-05,2]
[327297972,1715973034675,-444.66636879,8.871e-05,2]
[327297974,1715973035156,-155.0,8.87e-05,2]
[327297975,1715973035167,-852.84626851,8.871e-05,2]
[327297976,1715973035178,-204.80318837,8.872e-05,2]
[327297977,1715973035189,-2000.09259381,8.873e-05,2]
[327297978,1715973035200,-252.68,8.875e-05,2]
[327297979,1715973035210,-154.76,0.00010998,2]
[327297981,1715973035221,-250.0,0.00011012,2]
[327297983,1715973035231,-154.76,0.0001107,2]
[327297985,1715973035241,-150.0,0.00011103,2]
[327297987,1715973035252,-250.0,0.00011104,2]
[327297989,1715973035262,-252.68,0.00011139,2]
[327297991,1715973035273,-154.76,0.00011141,2]
[327297993,1715973035283,-177.88,0.00011144,2]
[327297995,1715973035294,-680.0,0.00011185,2]
[327297996,1715973035304,-1015.18,0.00011208,2]
[327297997,1715973035314,-2534.55794931,0.00011208,2]
[327297998,1715973035328,-18891.79205069,0.00011208,2]
[327297999,1715973035338,-278.26,0.00011208,2]
[327298000,1715973035349,-1211.85,0.00011208,2]
[327298001,1715973035360,-499.99,0.00011208,2]
[327298002,1715973035371,-154.76,0.00011213,2]
[327298003,1715973035382,-154.76,0.00011285,2]
[327298004,1715973035392,-5000.0,0.000113,2]
[327298005,1715973035402,-154.76,0.00011356,2]
[327298006,1715973035413,-154.76,0.00011428,2]
[327298007,1715973035423,-154.76,0.000115,2]
[327298008,1715973035434,-154.76,0.00011571,2]
[327298009,1715973035445,-153.05,0.00011642,2]
[327298010,1715973035456,-299.99,0.00011642,2]
[327298011,1715973035467,-617.98,0.0001165,2]
[327298012,1715973035478,-165.98,0.00011711,2]
[327298013,1715973035490,-19.83446201,0.0001178,2]
[327298014,1715973035503,-980.16553799,0.0001178,2]
[327298015,1715973035514,-818.88979131,0.0001178,2]
[327298016,1715973035524,-3292.76668793,0.00011781,7]
[327298017,1715973035535,-197.5464,0.000119,2]
[327298018,1715973035545,-300.0,0.000119,4]
[327298019,1715973035556,-156.12,0.00011968,2]
[327298020,1715973035566,-156.12,0.00011974,2]
[327298021,1715973035577,-6707.64,0.00011974,2]
[327298022,1715973035587,-156.12,0.0001198,2]
[327298023,1715973035598,-156.12,0.00011986,2]
[327298024,1715973035613,-156.12,0.00011992,2]
[327298025,1715973035624,-156.12,0.00011998,2]
[327298026,1715973035634,-72670.60560923,0.00012,2]
[327298027,1715973035644,-18064.11491085,0.00012,2]
[327298028,1715973035656,-13817.8098598,0.00012,2]
[327298029,1715973035666,-600.0,0.00012,4]
[327298030,1715973035677,-156.12,0.00012004,2]
[327298031,1715973035688,-156.12,0.0001201,2]
[327298032,1715973035698,-156.12,0.00012016,2]
[327298033,1715973035708,-3328.87674212,0.00012021,2]
[327298034,1715973035718,-156.12,0.00012022,2]
[327298035,1715973035728,-156.12,0.00012028,2]
[327298036,1715973035739,-15003.41,0.00012055,2]
[327298037,1715973035749,-13817.8098598,0.000121,2]
[327298038,1715973035759,-900.0,0.000121,4]
[327298039,1715973035769,-3328.87674204,0.00012119,2]
[327298040,1715973035779,-13817.8098598,0.000122,2]
[327298041,1715973035790,-1300.0,0.000122,4]
[327298042,1715973035800,-210.0,0.00012214,2]
[327298043,1715973035810,-3328.87674204,0.00012216,2]
[327298044,1715973035820,-10000.0,0.00012257,2]
[327298045,1715973035832,-1000.0,0.00012265,2]
[327298046,1715973035843,-13817.8098598,0.000123,2]
[327298047,1715973035854,-1600.0,0.000123,4]
[327298048,1715973035864,-287.31,0.00012304,2]
[327298049,1715973035874,-175.095979,0.00012311,2]
[327298050,1715973035885,-256.716411,0.00012311,2]
[327298051,1715973035896,-174.328765,0.00012311,2]
[327298052,1715973035907,-207.309203,0.00012311,2]
[327298053,1715973035917,-175.04949,0.00012311,2]
[327298054,1715973035928,-170.650014,0.00012311,2]
[327298055,1715973035938,-208.995113,0.00012311,2]
[327298056,1715973035949,-914.608115,0.00012311,2]
[327298057,1715973035959,-1579.84564,0.00012311,2]
[327298058,1715973035970,-175.625626,0.00012311,2]
[327298059,1715973035981,-182.677248,0.00012311,2]
[327298060,1715973035991,-3431.707445,0.00012311,2]
[327298061,1715973036002,-184.997494,0.00012311,2]
[327298062,1715973036013,-956.511847,0.00012311,2]
[327298063,1715973036024,-1281.575314,0.00012311,2]
[327298064,1715973036035,-3328.87674204,0.00012314,2]
[327298065,1715973036047,-328.02808541,0.00012348,2]
[327298066,1715973036059,-6109.2715,0.00012365,2]
[327298067,1715973036070,-300.0,0.000124,4]
[327298068,1715973036082,-13817.8098598,0.000124,2]
[327298069,1715973036093,-150.0,0.0001241,3]
[327298070,1715973036104,-3328.87674204,0.00012412,2]
[327298071,1715973036115,-256.716411,0.00012465,2]
[327298072,1715973036126,-175.04949,0.00012465,2]
[327298073,1715973036137,-208.995113,0.00012465,2]
[327298074,1715973036148,-914.608115,0.00012465,2]
[327298075,1715973036159,-1579.84564,0.00012465,2]
[327298076,1715973036169,-3431.707445,0.00012465,2]
[327298077,1715973036181,-956.511847,0.00012465,2]
[327298078,1715973036191,-1281.575314,0.00012465,2]
[327298079,1715973036202,-300.0,0.000125,4]
[327298080,1715973036213,-13817.8098598,0.000125,2]
[327298081,1715973036224,-3328.87674204,0.00012509,2]
[327298082,1715973036235,-680.0,0.00012583,2]
[327298083,1715973036248,-300.0,0.000126,4]
[327298084,1715973036259,-13817.8098598,0.000126,2]
[327298085,1715973036271,-600.0,0.00012602,2]
[327298086,1715973036282,-500.0,0.00012602,2]
[327298087,1715973036292,-3328.87674204,0.00012607,2]
[327298088,1715973036304,-174.328765,0.00012619,2]
[327298089,1715973036316,-175.625626,0.00012619,2]
[327298090,1715973036327,-182.677248,0.00012619,2]
[327298091,1715973036338,-256.716411,0.00012619,2]
[327298092,1715973036349,-175.04949,0.00012619,2]
[327298093,1715973036360,-208.995113,0.00012619,2]
[327298094,1715973036372,-914.608115,0.00012619,2]
[327298095,1715973036382,-1579.84564,0.00012619,2]
[327298096,1715973036394,-3431.707445,0.00012619,2]
[327298097,1715973036404,-956.511847,0.00012619,2]
[327298098,1715973036416,-1281.575314,0.00012619,2]
[327298099,1715973036426,-171.4,0.00012686,2]
[327298100,1715973036703,-500.0,0.000127,2]
[327298101,1715973036723,-300.0,0.000127,4]
[327298102,1715973036734,-13817.8098598,0.000127,2]
[327298103,1715973036743,-3328.87674204,0.00012705,2]
[327298104,1715973036752,-2121.3675,0.00012705,2]
[327298105,1715973036761,-500.0,0.00012718,2]
[327298106,1715973036771,-458.87555676,0.00012718,2]
[327298107,1715973036780,-7500.0,0.00012718,2]
[327298108,1715973036789,-2603.99957143,0.00012736,2]
[327298109,1715973036799,-256.716411,0.00012772,2]
[327298110,1715973036808,-175.04949,0.00012772,2]
[327298111,1715973036817,-208.995113,0.00012772,2]
[327298112,1715973036826,-914.608115,0.00012772,2]
[327298113,1715973036836,-1579.84564,0.00012772,2]
[327298114,1715973036846,-3431.707445,0.00012772,2]
[327298115,1715973036855,-956.511847,0.00012772,2]
[327298116,1715973036865,-1281.575314,0.00012772,2]
[327298117,1715973036875,-462.26084137,0.00012799,2]
[327298118,1715973036884,-500.0,0.00012799,2]
[327298119,1715973036893,-500.0,0.00012799,2]
[327298120,1715973036902,-500.0,0.00012799,2]
[327298121,1715973036912,-500.0,0.00012799,2]
[327298122,1715973036921,-187.61229863,0.00012799,2]
[327298123,1715973036931,-500.0,0.00012799,2]
[327298124,1715973036940,-435.523,0.00012799,2]
[327298125,1715973036949,-4895.0,0.000128,2]
[327298126,1715973036959,-500.0,0.000128,2]
[327298127,1715973036968,-659.0,0.000128,4]
[327298128,1715973036977,-13817.8098598,0.000128,2]
[327298129,1715973036986,-3328.87674204,0.00012802,2]
[327298130,1715973036996,-253.47990294,0.00012804,2]
[327298131,1715973037006,-4238.2775,0.00012805,2]
[327298132,1715973037015,-1564.36069654,0.00012808,2]
[327298133,1715973037024,-253.47990292,0.00012828,2]
[327298134,1715973037036,-500.0,0.0001284,2]
[327298135,1715973037045,-500.0,0.0001284,2]
[327298136,1715973037054,-500.0,0.0001284,2]
[327298137,1715973037064,-289.7171649,0.0001284,2]
[327298138,1715973037074,-500.0,0.0001284,2]
[327298139,1715973037084,-200.0,0.00012845,2]
[327298140,1715973037093,-401.6954,0.00012849,2]
[327298141,1715973037103,-253.47990292,0.00012852,2]
[327298142,1715973037112,-420.8587452,0.00012869,2]
[327298143,1715973037122,-253.47990292,0.00012876,2]
[327298144,1715973037132,-287.31,0.0001289,2]
[327298145,1715973037142,-200.0,0.00012892,2]
[327298146,1715973037151,-1000.0,0.00012892,2]
[327298147,1715973037161,-500.0,0.00012893,2]
[327298148,1715973037171,-200.0,0.00012895,2]
[327298149,1715973037180,-1000.0,0.00012895,2]
[327298150,1715973037189,-500.0,0.00012895,2]
[327298151,1715973037198,-500.0,0.00012895,2]
[327298152,1715973037207,-200.0,0.00012895,2]
[327298153,1715973037216,-1000.0,0.00012895,2]
[327298154,1715973037226,-500.0,0.00012895,2]
[327298155,1715973037235,-1279.4754,0.00012896,2]
[327298156,1715973037244,-8172.446,0.00012898,2]
[327298157,1715973037253,-2188.1799,0.00012898,2]
[327298158,1715973037263,-5869.4843,0.000129,2]
[327298159,1715973037273,-1118.0039,0.000129,2]
[327298160,1715973037282,-22595.38899107,0.000129,2]
[327298161,1715973037291,-180.64916905,0.000129,2]
[327298162,1715973037300,-10000.0,0.000129,2]
[327298163,1715973037310,-3328.87674204,0.000129,2]
[327298164,1715973037319,-253.47990292,0.000129,2]
[327298165,1715973037329,-12017.10086983,0.000129,2]
[327298166,1715973037339,-386.39921416,0.000129,2]
[327298167,1715973037348,-196.71913628,0.000129,2]
[327298168,1715973037357,-13817.8098598,0.000129,2]
[327298169,1715973037366,-175.77335344,0.000129,2]
[327298170,1715973037375,-172.42754453,0.000129,2]
[327298171,1715973037384,-500.0,0.00012904,2]
[327298172,1715973037394,-500.0,0.00012904,2]
[327298173,1715973037403,-500.0,0.00012904,2]
[327298174,1715973037412,-299.99999999,0.00012904,2]
[327298175,1715973037421,-500.0,0.00012904,2]
[327298176,1715973037431,-500.0,0.00012904,2]
[327298177,1715973037440,-527.59798318,0.00012904,2]
[327298178,1715973037449,-391.36082151,0.00012904,2]
[327298179,1715973037459,-500.0,0.00012904,2]
[327298180,1715973037468,-512.42739681,0.00012904,2]
[327298181,1715973037477,-500.0,0.00012904,2]
[327298182,1715973037486,-500.0,0.00012904,2]
[327298183,1715973037495,-528.62992114,0.00012904,2]
[327298184,1715973037505,-500.0,0.00012904,2]
[327298185,1715973037514,-500.0,0.00012904,2]
[327298186,1715973037524,-500.0,0.00012904,2]
[327298187,1715973037533,-500.0,0.00012904,2]
[327298188,1715973037543,-500.0,0.00012904,2]
[327298189,1715973037553,-500.0,0.00012904,2]
[327298190,1715973037562,-496.78827841,0.00012904,2]
[327298191,1715973037572,-500.0,0.00012904,2]
[327298192,1715973037582,-518.49298774,0.00012904,2]
[327298193,1715973037591,-500.0,0.00012904,2]
[327298194,1715973037601,-500.0,0.00012904,2]
[327298195,1715973037612,-160.64,0.00012904,2]
[327298196,1715973037621,-500.0,0.00012904,2]
[327298197,1715973037631,-322.31,0.00012904,2]
[327298198,1715973037640,-245.74469309,0.00012904,2]
[327298199,1715973037650,-500.0,0.00012904,2]
[327298200,1715973037660,-500.0,0.00012904,2]
[327298201,1715973037670,-313.38,0.00012904,2]
[327298202,1715973037679,-500.0,0.00012904,2]
[327298203,1715973037691,-500.0,0.00012904,2]
[327298204,1715973037701,-500.0,0.00012904,2]
[327298205,1715973037710,-500.0,0.00012904,2]
[327298206,1715973037719,-500.0,0.00012904,2]
[327298207,1715973037728,-500.0,0.00012904,2]
[327298208,1715973037737,-574.84,0.00012904,2]
[327298209,1715973037746,-500.0,0.00012904,2]
[327298210,1715973037755,-591.29,0.00012904,2]
[327298211,1715973037764,-500.0,0.00012904,2]
[327298212,1715973037773,-500.0,0.00012904,2]
[327298213,1715973037783,-150.0,0.00012904,2]
[327298214,1715973037792,-500.0,0.00012904,2]
[327298215,1715973037802,-500.0,0.00012904,2]
[327298216,1715973037811,-500.0,0.00012904,2]
[327298217,1715973037820,-500.0,0.00012904,2]
[327298218,1715973037831,-500.0,0.00012904,2]
[327298219,1715973037840,-500.0,0.00012904,2]
[327298220,1715973037849,-500.0,0.00012904,2]
[327298221,1715973037858,-534.15,0.00012904,2]
[327298222,1715973037867,-500.0,0.00012904,2]
[327298223,1715973037876,-500.0,0.00012904,2]
[327298224,1715973037885,-500.0,0.00012904,2]
[327298225,1715973037894,-500.0,0.00012904,2]
[327298226,1715973037904,-500.0,0.00012904,2]
[327298227,1715973037913,-500.0,0.00012904,2]
[327298228,1715973037922,-500.0,0.00012904,2]
[327298229,1715973037931,-500.0,0.00012904,2]
[327298230,1715973037941,-500.0,0.00012904,2]
[327298231,1715973037950,-500.0,0.00012904,2]
[327298232,1715973037959,-500.0,0.00012904,2]
[327298233,1715973037970,-500.0,0.00012904,2]
[327298234,1715973037979,-500.0,0.00012904,2]
[327298235,1715973037988,-500.0,0.00012904,2]
[327298236,1715973037998,-233.02,0.00012904,2]
[327298237,1715973038007,-500.0,0.00012904,2]
[327298238,1715973038016,-500.0,0.00012904,2]
[327298239,1715973038026,-500.0,0.00012904,2]
[327298240,1715973038035,-500.0,0.00012904,2]
[327298241,1715973038044,-500.0,0.00012904,2]
[327298242,1715973038053,-500.0,0.00012904,2]
[327298243,1715973038063,-500.0,0.00012904,2]
[327298244,1715973038072,-500.0,0.00012904,2]
[327298245,1715973038082,-500.0,0.00012904,2]
[327298246,1715973038092,-300.51737616,0.00012904,2]
[327298247,1715973038101,-500.0,0.00012904,2]
[327298248,1715973038110,-500.0,0.00012904,2]
[327298249,1715973038120,-166.0,0.00012905,2]
[327298250,1715973038128,-173.163,0.00012905,2]
[327298251,1715973038137,-150.0,0.00012905,2]
[327298252,1715973038147,-150.0,0.00012905,2]
[327298253,1715973038156,-150.0,0.00012905,2]
[327298254,1715973038165,-1399.0,0.00012905,2]
[327298256,1715973038174,-973.0,0.00012905,2]